bitfinex-derivatives/quotes_BNBF0:USTF0_20251219
["timestamp","ask_amount","ask_price","bid_price","bid_amount"]
[1766114978219,0.86258947,839.62,837.46,0.84518995]
[1766114978917,0.86258947,839.67,837.52,0.84518995]
[1766114979121,0.86258947,839.66,837.53,0.84518995]
[1766114979421,0.86258947,839.65,837.53,0.84518995]
[1766114980319,0.86258947,839.64,837.54,0.84518995]
[1766114980522,0.86258947,839.65,837.54,0.84518995]
[1766114981224,0.86258947,839.64,837.55,0.84518995]
[1766114982122,0.86258947,839.63,837.56,0.84518995]
[1766114982523,0.86258947,839.62,837.55,0.84518995]
[1766114983124,0.86258947,839.61,837.56,0.84518995]
[1766114983322,0.86258947,839.82,837.76,0.84518995]
[1766114983526,0.86258947,839.87,837.82,0.84518995]
[1766114983827,0.20726561,839.93,837.91,0.84518995]
[1766114984126,0.20726561,839.93,837.92,0.84518995]
[1766114984326,0.20726561,839.93,837.91,0.84518995]
[1766114985128,0.20726561,839.93,837.93,0.84518995]
[1766114985326,0.20726561,839.93,837.92,0.84518995]
[1766114985732,0.86258947,839.81,837.76,0.84518995]
[1766114985930,0.86258947,839.81,837.17,12.83701843]
[1766114985931,0.86258947,839.81,837.77,0.84518995]
[1766114986131,0.86258947,839.68,837.67,0.84518995]
[1766114986328,0.86258947,839.65,837.63,0.84518995]
[1766114986932,0.86258947,839.65,837.64,0.84518995]
[1766114987130,0.86258947,839.64,837.66,0.84518995]
[1766114987533,0.86258947,839.58,837.6,0.84518995]
[1766114987729,0.86258947,839.55,837.57,0.84518995]
[1766114988332,0.86258947,839.54,837.59,0.84518995]
[1766114988528,0.86258947,839.49,837.55,0.84518995]
[1766114989133,0.86258947,839.48,837.57,0.84518995]
[1766114989430,0.86258947,839.47,837.57,0.84518995]
[1766114990135,0.86258947,839.47,837.58,0.84518995]
[1766114990637,0.86258947,839.42,837.54,0.84518995]
[1766114991230,0.86258947,839.41,837.55,0.84518995]
[1766114991734,0.86258947,839.45,837.58,0.84518995]
[1766114992335,0.86258947,839.45,837.59,0.84518995]
[1766114992736,0.86258947,839.44,837.58,0.84518995]
[1766114993136,0.86258947,839.44,837.59,0.84518995]
[1766114993436,0.20726561,839.93,837.58,0.84518995]
[1766114993437,0.86258947,839.43,837.58,0.84518995]
[1766114994133,0.86258947,839.42,837.58,0.84518995]
[1766114995137,0.86258947,839.42,837.59,0.84518995]
[1766114996138,0.86258947,839.42,837.6,0.84518995]
[1766114996438,0.20726561,839.93,837.52,0.84518995]
[1766114996439,0.86258947,839.33,837.52,0.84518995]
[1766114997237,0.86258947,839.59,837.78,0.84518995]
[1766114997442,0.86258947,839.62,837.8,0.84518995]
[1766114997640,0.86258947,839.62,837.81,0.84518995]
[1766114998037,0.86258947,839.63,837.8,0.84518995]
[1766114998337,0.86258947,839.64,837.8,0.84518995]
[1766114998541,0.86258947,839.84,838.0,0.84518995]
[1766114999340,0.86258947,839.86,837.99,0.84518995]
[1766114999838,0.20726561,839.93,838.15,0.84518995]
[1766115000044,0.20726561,839.93,838.24,0.84518995]
[1766115000244,0.20726561,839.93,838.11,0.84518995]
[1766115000444,0.86258947,839.9,838.03,0.84518995]
[1766115000743,0.86258947,839.9,838.04,0.84518995]
[1766115000943,0.20726561,839.93,838.17,0.84518995]
[1766115001144,0.20726561,839.93,838.19,0.84518995]
[1766115001345,0.20726561,839.93,838.34,0.84518995]
[1766115001544,0.20726561,839.93,838.43,0.84518995]
[1766115001741,0.20726561,839.93,838.42,0.84518995]
[1766115002146,0.20726561,839.93,838.4,0.84518995]
[1766115002343,0.20726561,839.93,838.53,0.84518995]
[1766115002947,0.20726561,839.93,838.55,0.84518995]
[1766115003145,0.20726561,839.93,838.5,0.84518995]
[1766115003749,0.20726561,839.93,838.39,0.84518995]
[1766115004048,0.20726561,839.93,838.33,0.84518995]
[1766115004249,0.20726561,839.93,838.2,0.84518995]
[1766115004449,0.20726561,839.93,838.12,0.84518995]
[1766115004850,0.20726561,839.93,837.99,0.84518995]
[1766115005248,0.20726561,839.93,837.97,0.84518995]
[1766115005849,0.20726561,839.93,838.07,0.84518995]
[1766115006049,0.20726561,839.93,838.35,0.84518995]
[1766115006352,0.20726561,839.93,838.34,0.84518995]
[1766115006550,0.86258947,840.87,838.64,0.84518995]
[1766115006847,0.20721193,840.24,838.89,0.84518995]
[1766115007046,0.20721193,840.24,838.89,13.9822764]
[1766115007249,0.01297748,841.08,838.89,13.13708645]
[1766115007452,0.20712251,840.41,838.89,13.13708645]
[1766115007748,2.982307,842.09,838.89,13.13708645]
[1766115007749,9.10130754,840.9,838.89,13.13708645]
[1766115007949,0.20712683,840.35,838.89,13.13708645]
[1766115009351,9.10130754,840.9,838.89,13.13708645]
[1766115009549,0.2071219,840.53,838.89,13.13708645]
[1766115009750,0.2071219,840.53,838.93,0.84518995]
[1766115009950,9.10130754,840.9,838.94,0.84518995]
[1766115010150,0.20709417,840.74,838.96,0.84518995]
[1766115010554,0.20709417,840.74,838.99,0.84518995]
[1766115010949,0.20709417,840.74,838.97,0.84518995]
[1766115011151,0.20709417,840.74,838.89,13.13708645]
[1766115036369,0.86258947,840.73,838.89,13.13708645]
[1766115037473,0.20709417,840.74,838.89,13.13708645]
[1766115038373,0.86258947,840.7,838.89,13.13708645]
[1766115038970,0.86258947,840.69,838.89,13.13708645]
[1766115039176,0.86258947,840.54,838.89,13.13708645]
[1766115040170,0.86258947,840.53,838.89,13.13708645]
[1766115040576,0.86258947,840.49,838.89,13.13708645]
[1766115041272,0.86258947,840.45,838.89,13.13708645]
[1766115042280,0.86258947,840.44,838.89,13.13708645]
[1766115042683,0.86258947,840.47,838.89,13.13708645]
[1766115043282,0.86258947,840.39,838.89,13.13708645]
[1766115044081,0.86258947,840.39,838.05,0.00909245]
[1766115044284,0.86258947,840.2,837.83,0.84518995]
[1766115044779,0.86258947,840.35,837.98,0.84518995]
[1766115044983,0.86258947,840.39,838.02,0.84518995]
[1766115045283,0.86258947,840.39,838.03,0.84518995]
[1766115045678,0.86258947,840.39,837.19,0.01421138]
[1766115045679,0.86258947,840.45,838.09,0.84518995]
[1766115046184,0.86258947,840.44,838.1,0.84518995]
[1766115046783,0.86258947,840.59,838.24,0.84518995]
[1766115046985,0.86258947,840.68,838.34,0.84518995]
[1766115047184,0.86258947,840.67,838.35,0.84518995]
[1766115048186,0.86258947,840.65,838.37,0.84518995]
[1766115048586,0.86258947,840.61,838.33,0.84518995]
[1766115048788,0.86258947,840.59,838.31,0.84518995]
[1766115049087,0.86258947,840.59,838.32,0.84518995]
[1766115049289,0.86258947,840.58,838.34,0.84518995]
[1766115050182,0.86258947,840.55,838.36,0.84518995]
[1766115050387,0.86258947,840.56,838.36,0.84518995]
[1766115050686,0.86258947,840.55,838.36,0.84518995]
[1766115050888,0.86258947,840.59,838.39,0.84518995]
[1766115051088,0.86258947,840.62,838.43,0.84518995]
[1766115051288,0.86258947,840.46,838.32,0.84518995]
[1766115051788,0.86258947,840.45,838.31,0.84518995]
[1766115051983,0.20709417,840.74,837.41,2.93240177]
[1766115051984,0.86258947,840.42,838.28,0.84518995]
[1766115052183,0.86258947,840.42,837.41,2.93240177]
[1766115052184,0.86258947,840.4,838.31,0.84518995]
[1766115052387,0.20709417,840.74,838.25,0.84518995]
[1766115052388,0.86258947,840.34,838.25,0.84518995]
[1766115052585,0.86258947,840.25,838.16,0.84518995]
[1766115052986,0.86258947,840.26,838.18,0.84518995]
[1766115053284,0.86258947,840.26,837.27,2.93240177]
[1766115053285,0.86258947,840.39,838.36,0.84518995]
[1766115053689,0.86258947,840.49,838.46,0.84518995]
[1766115053990,0.86258947,840.53,838.49,0.84518995]
[1766115054185,0.86258947,840.49,838.52,0.84518995]
[1766115054391,0.86258947,840.51,838.54,0.84518995]
[1766115054989,0.86258947,840.57,838.6,0.84518995]
[1766115055187,0.86258947,840.53,838.64,0.84518995]
[1766115055592,0.86258947,840.54,838.64,0.84518995]
[1766115056090,0.86258947,840.54,838.65,0.84518995]
[1766115056293,0.86258947,840.51,838.69,0.84518995]
[1766115057094,0.86258947,840.46,838.74,0.84518995]
[1766115057595,0.86258947,840.49,838.77,0.84518995]
[1766115057895,0.86258947,840.52,838.8,0.84518995]
[1766115058190,0.86258947,840.49,838.83,0.84518995]
[1766115058595,0.86258947,840.48,838.83,0.84518995]
[1766115059292,0.86258947,840.39,838.78,0.84518995]
[1766115059794,0.86258947,840.4,838.78,0.84518995]
[1766115060390,0.86258947,840.45,838.83,0.84518995]
[1766115060594,0.86258947,840.55,838.93,0.84518995]
[1766115060894,0.86258947,840.66,839.04,0.84518995]
[1766115061293,0.86258947,840.66,839.05,0.84518995]
[1766115061494,0.86258947,840.67,839.06,0.84518995]
[1766115061794,0.20709417,840.74,839.16,0.84518995]
[1766115062593,0.20709417,840.74,838.73,13.15382759]
[1766115062594,0.86258947,840.6,838.98,0.84518995]
[1766115062993,0.20709417,840.74,838.73,13.15382759]
[1766115062994,0.86258947,840.61,838.99,0.84518995]
[1766115063194,0.86258947,840.65,839.03,0.84518995]
[1766115063593,0.86258947,840.64,839.02,0.84518995]
[1766115064089,0.86258947,840.65,839.03,0.84518995]
[1766115064294,0.86258947,840.64,839.02,0.84518995]
[1766115064793,0.86258947,840.63,839.02,0.84518995]
[1766115065097,0.86258947,840.58,838.96,0.84518995]
[1766115065295,0.86258947,840.56,838.97,0.84518995]
[1766115065498,0.86258947,840.5,838.91,0.84518995]
[1766115065698,0.86258947,840.48,838.9,0.84518995]
[1766115065998,0.20709417,840.74,838.88,0.84518995]
[1766115065999,0.86258947,840.47,838.88,0.84518995]
[1766115066198,0.86258947,840.46,838.88,0.84518995]
[1766115066498,0.86258947,840.39,838.81,0.84518995]
[1766115067196,0.86258947,840.38,838.81,0.84518995]
[1766115067595,0.86258947,840.39,838.82,0.84518995]
[1766115067797,0.86258947,840.48,838.91,0.84518995]
[1766115068295,0.86258947,840.47,838.92,0.84518995]
[1766115068698,0.86258947,840.45,838.9,0.84518995]
[1766115069099,0.86258947,840.45,838.91,0.84518995]
[1766115069299,0.86258947,840.44,838.91,0.84518995]
[1766115069498,0.86258947,840.45,838.92,0.84518995]
[1766115069698,0.86258947,840.44,838.92,0.84518995]
[1766115069900,0.86258947,840.45,838.92,0.84518995]
[1766115070102,0.86258947,840.44,838.92,0.84518995]
[1766115070399,0.86258947,840.41,838.95,0.84518995]
[1766115071005,0.86258947,840.41,838.94,0.84518995]
[1766115071300,0.86258947,840.38,838.97,0.84518995]
[1766115071501,0.86258947,840.4,838.99,0.84518995]
[1766115071708,1.7893842,840.7,838.73,13.15382759]
[1766115071709,0.86258947,840.7,839.28,0.84518995]
[1766115071907,0.86258947,840.71,839.29,0.84518995]
[1766115072103,0.86258947,840.6,839.22,0.84518995]
[1766115072508,0.86258947,840.67,839.3,0.84518995]
[1766115072708,0.20709417,840.74,839.39,0.84518995]
[1766115072908,0.20709417,840.74,839.38,0.84518995]
[1766115073104,0.20709417,840.74,839.39,0.84518995]
[1766115073304,0.20709417,840.74,839.38,0.84518995]
[1766115073703,0.20709417,840.74,839.4,0.84518995]
[1766115074211,0.20709417,840.74,839.38,0.84518995]
[1766115075109,0.20709417,840.74,839.36,0.84518995]
[1766115075311,0.20709417,840.74,839.37,0.84518995]
[1766115076010,0.20709417,840.74,839.36,0.84518995]
[1766115076211,0.20709417,840.74,839.35,0.84518995]
[1766115076409,0.86258947,840.67,839.22,0.84518995]
[1766115076808,0.86258947,840.57,839.12,0.84518995]
[1766115077009,1.16154638,840.72,838.96,0.84518995]
[1766115077010,0.86258947,840.41,838.96,0.84518995]
[1766115078109,1.7893842,840.72,838.96,0.84518995]
[1766115078110,0.86258947,840.42,838.96,0.84518995]
[1766115078413,0.86258947,840.41,838.96,0.84518995]
[1766115079513,0.86258947,840.42,838.97,0.84518995]
[1766115079915,0.86258947,840.51,839.06,0.84518995]
[1766115080312,0.86258947,840.5,839.05,0.84518995]
[1766115080515,0.86258947,840.5,838.9,1.17209395]
[1766115080516,0.86258947,840.51,839.06,0.84518995]
[1766115082315,0.86258947,840.46,839.01,0.84518995]
[1766115082811,0.86258947,840.46,839.0,0.84518995]
[1766115083215,0.86258947,840.46,839.01,0.84518995]
[1766115083416,0.86258947,840.46,839.02,0.84518995]
[1766115083715,0.86258947,840.57,839.12,0.84518995]
[1766115084111,0.86258947,840.57,839.11,0.84518995]
[1766115084316,0.86258947,840.57,839.12,0.84518995]
[1766115084916,0.86258947,840.57,839.11,0.84518995]
[1766115086412,0.86258947,840.52,839.06,0.84518995]
[1766115086816,0.86258947,840.52,839.05,0.84518995]
[1766115087116,0.86258947,840.52,839.06,0.84518995]
[1766115087316,0.86258947,840.48,839.02,0.84518995]
[1766115090317,0.20709417,840.74,839.03,0.84518995]
[1766115090318,0.86258947,840.49,839.03,0.84518995]
[1766115090618,0.86258947,840.56,839.1,0.84518995]
[1766115090814,0.20709417,840.74,839.31,0.84518995]
[1766115091116,0.20709417,840.74,839.32,0.84518995]
[1766115091319,0.20709417,840.74,839.3,0.84518995]
[1766115091620,0.86258947,840.42,838.94,0.84518995]
[1766115091813,0.86258947,840.45,838.98,0.84518995]
[1766115092017,0.86258947,840.57,839.09,0.84518995]
[1766115092213,0.86258947,840.58,839.14,0.84518995]
[1766115092416,0.86258947,840.65,839.17,0.84518995]
[1766115092620,0.86258947,840.66,839.18,0.84518995]
[1766115092816,0.86258947,840.66,839.17,0.84518995]
[1766115093022,0.86258947,840.72,839.24,0.84518995]
[1766115093222,0.86258947,840.73,839.24,0.84518995]
[1766115093519,0.86258947,840.64,839.15,0.84518995]
[1766115093822,0.88631395,840.63,839.14,0.85870804]
[1766115094318,0.88631395,840.46,838.96,0.85870804]
[1766115094521,0.88631395,840.43,838.94,0.85870804]
[1766115094917,0.88631395,840.37,838.88,0.85870804]
[1766115095120,0.88631395,840.35,838.86,0.85870804]
[1766115095422,0.88631395,840.34,838.85,0.85870804]
[1766115096526,0.88631395,840.33,838.84,0.85870804]
[1766115096821,0.88631395,840.32,838.83,0.85870804]
[1766115097019,0.88631395,840.32,838.73,13.15382759]
[1766115097020,0.88631395,840.25,838.76,0.85870804]
[1766115097223,0.88631395,840.22,838.73,14.01253563]
[1766115098128,0.20709417,840.74,838.79,0.85870804]
[1766115098129,0.88631395,840.28,838.79,0.85870804]
[1766115098424,0.88631395,840.22,838.73,14.01253563]
[1766115098626,0.88631395,840.24,838.75,0.85870804]
[1766115098828,0.88631395,840.23,838.74,0.85870804]
[1766115099026,0.88631395,840.22,838.73,14.01253563]
[1766115099223,0.88631395,840.15,838.73,13.15382759]
[1766115099830,0.88631395,840.16,838.73,13.15382759]
[1766115100732,0.88631395,840.24,838.77,0.85870804]
[1766115100929,0.88631395,840.24,838.76,0.85870804]
[1766115101232,0.88631395,840.23,838.77,0.85870804]
[1766115102134,0.88631395,840.22,838.77,0.85870804]
[1766115102330,0.88631395,840.22,838.78,0.85870804]
[1766115102532,0.88631395,840.22,838.77,0.85870804]
[1766115102733,0.88631395,840.14,838.73,13.15382759]
[1766115103333,0.88631395,840.13,838.73,13.15382759]
[1766115103732,0.88631395,839.91,838.73,13.15382759]
[1766115103933,0.88631395,839.89,838.73,13.15382759]
[1766115104134,0.88631395,839.86,838.73,13.15382759]
[1766115104329,0.88631395,839.83,838.73,13.15382759]
[1766115104532,0.88631395,839.79,838.73,13.15382759]
[1766115104834,0.88631395,839.69,838.26,0.85870804]
[1766115105135,0.88631395,839.59,838.17,0.85870804]
[1766115105436,0.88631395,839.53,838.04,0.85870804]
[1766115105636,0.88631395,839.51,838.03,0.85870804]
[1766115105932,0.88631395,839.53,838.05,0.85870804]
[1766115106136,0.88631395,839.65,838.17,0.85870804]
[1766115106338,0.88631395,839.69,838.16,0.85870804]
[1766115106633,0.88631395,839.78,838.24,0.85870804]
[1766115107137,0.88631395,839.88,838.31,0.85870804]
[1766115107337,0.88631395,839.89,838.32,0.85870804]
[1766115107633,0.88631395,839.97,838.4,0.85870804]
[1766115107830,1.16154638,840.16,838.94,0.85870804]
[1766115108032,0.88631395,840.72,839.15,0.85870804]
[1766115108236,0.88631395,840.72,839.13,0.85870804]
[1766115108433,0.88631395,840.71,839.13,0.85870804]
[1766115108733,0.88631395,840.57,838.98,0.85870804]
[1766115109134,0.88631395,840.57,838.99,0.85870804]
[1766115109536,0.88631395,840.57,838.84,1.17209395]
[1766115109537,0.88631395,840.56,838.98,0.85870804]
[1766115109737,0.88631395,840.57,838.99,0.85870804]
[1766115109933,0.88631395,840.64,839.06,0.85870804]
[1766115110433,0.88631395,840.71,839.13,0.85870804]
[1766115110633,0.88631395,840.72,839.14,0.85870804]
[1766115110840,0.88631395,840.89,839.31,0.85870804]
[1766115111036,0.88631395,840.99,839.41,0.85870804]
[1766115111237,0.88631395,841.0,839.39,0.85870804]
[1766115111737,0.01440874,841.56,838.55,0.00896707]
[1766115111738,0.88631395,841.08,839.47,0.85870804]
[1766115112137,0.88631395,841.09,839.45,0.85870804]
[1766115112339,0.88631395,841.15,839.52,0.85870804]
[1766115113142,0.88631395,841.16,839.51,0.85870804]
[1766115113940,1.18038957,841.31,838.67,0.01075571]
[1766115113941,0.88631395,841.17,839.52,0.85870804]
[1766115114139,0.88631395,841.19,839.51,0.85870804]
[1766115114443,0.01440874,841.56,839.95,0.85870804]
[1766115114643,0.01440874,841.56,839.98,0.85870804]
[1766115114842,0.20700547,841.19,840.09,0.85870804]
[1766115115142,0.20700547,841.19,839.99,0.85870804]
[1766115115341,0.20700547,841.19,839.95,12.80107276]
[1766115115843,0.20700547,841.19,840.0,0.85870804]
[1766115116038,0.20700547,841.19,840.03,0.85870804]
[1766115116242,0.20700547,841.19,839.95,12.80107276]
[1766115121946,0.88631395,842.03,839.95,12.80107276]
[1766115122142,0.20690147,841.28,839.95,12.80107276]
[1766115122343,0.88631395,842.0,839.95,12.80107276]
[1766115122741,0.20691439,841.15,839.95,12.80107276]
[1766115123046,0.01036687,841.99,839.95,12.80107276]
[1766115123248,0.88631395,842.1,839.95,12.80107276]
[1766115123544,0.88631395,842.47,840.18,0.85870804]
[1766115123743,0.88631395,842.64,840.19,1.17209395]
[1766115123943,0.88631395,842.74,840.44,0.84560248]
[1766115124246,0.20676625,842.0,840.37,0.84560248]
[1766115124446,0.20676625,842.0,840.4,0.84560248]
[1766115124744,0.20676625,842.0,840.46,0.84560248]
[1766115125147,0.20676625,842.0,840.45,0.84560248]
[1766115125347,0.20676625,842.0,839.95,12.80107276]
[1766115125348,0.20676625,842.0,840.43,0.84560248]
[1766115125648,0.01245025,842.84,840.43,0.84560248]
[1766115125845,0.20673615,842.09,840.44,0.84560248]
[1766115126049,0.88631395,843.04,840.44,0.84560248]
[1766115126248,0.20672264,842.16,840.36,0.84560248]
[1766115126548,0.20672264,842.16,840.51,0.84560248]
[1766115126751,0.20672264,842.16,840.39,0.84560248]
[1766115126943,0.20672264,842.16,840.32,0.84560248]
[1766115127146,0.20672264,842.16,840.24,0.84560248]
[1766115127349,0.20672264,842.16,840.02,0.84560248]
[1766115127643,0.20672264,842.16,840.01,0.84560248]
[1766115128348,0.20672264,842.16,839.97,0.84560248]
[1766115128848,0.20672264,842.16,839.96,0.84560248]
[1766115129051,0.20672264,842.16,839.95,12.80107276]
[1766115167273,0.86485148,842.13,839.96,0.83391116]
[1766115168175,0.86485148,842.1,840.0,0.83391116]
[1766115168374,0.86485148,842.09,840.0,0.83391116]
[1766115168978,0.86485148,842.1,840.01,0.83391116]
[1766115169175,0.86485148,842.13,840.16,0.83391116]
[1766115170081,0.86485148,842.07,840.23,0.83391116]
[1766115170980,0.86485148,842.1,840.26,0.83391116]
[1766115171176,0.86485148,842.09,840.33,0.83391116]
[1766115171681,0.20672264,842.16,840.57,0.83391116]
[1766115172179,0.20672264,842.16,840.61,0.83391116]
[1766115172382,0.20672264,842.16,840.62,0.83391116]
[1766115172681,0.20672264,842.16,840.64,0.83391116]
[1766115173180,0.20672264,842.16,840.68,0.83391116]
[1766115173379,0.20672264,842.16,840.67,0.83391116]
[1766115174282,0.20672264,842.16,840.71,0.83391116]
[1766115174681,0.20672264,842.16,840.72,0.83391116]
[1766115175084,0.20672264,842.16,840.74,0.83391116]
[1766115175284,0.20672264,842.16,840.75,0.83391116]
[1766115175483,0.20672264,842.16,840.78,0.83391116]
[1766115175685,0.20672264,842.16,840.83,0.83391116]
[1766115175981,0.20672264,842.16,840.9,0.83391116]
[1766115176284,0.20672264,842.16,840.91,0.83391116]
[1766115176983,0.20672264,842.16,840.92,0.83391116]
[1766115177881,0.20672264,842.16,840.94,0.83391116]
[1766115178382,0.20672264,842.16,840.96,0.83391116]
[1766115179288,0.20672264,842.16,840.98,0.83391116]
[1766115179790,0.20672264,842.16,840.96,0.83391116]
[1766115180189,0.20672264,842.16,840.9,0.83391116]
[1766115180490,0.20672264,842.16,840.89,0.83391116]
[1766115180688,0.20672264,842.16,840.9,0.83391116]
[1766115181386,0.20672264,842.16,840.89,0.83391116]
[1766115181587,0.20672264,842.16,840.9,0.83391116]
[1766115181787,0.20672264,842.16,840.83,0.83391116]
[1766115183294,0.20672264,842.16,840.84,0.83391116]
[1766115183493,0.20672264,842.16,839.93,2.93240177]
[1766115183494,0.20672264,842.16,840.86,0.83391116]
[1766115186300,0.20672264,842.16,840.87,0.83391116]
[1766115186999,0.20672264,842.16,840.72,1.17209395]
[1766115187000,1.07157412,842.16,840.79,0.83391116]
[1766115187199,0.86485148,842.15,840.79,0.83391116]
[1766115187399,0.86485148,842.07,840.72,0.83391116]
[1766115188096,0.86485148,842.08,840.73,0.83391116]
[1766115188403,0.86485148,842.08,840.43,1.70834529]
[1766115188404,0.20672264,842.16,840.87,0.83391116]
[1766115189292,0.20672264,842.16,840.96,0.83391116]
[1766115189897,0.20672264,842.16,840.95,0.83391116]
[1766115190095,0.20672264,842.16,840.94,0.83391116]
[1766115191599,0.20672264,842.16,840.95,0.83391116]
[1766115191801,0.20672264,842.16,840.94,0.83391116]
[1766115192202,0.20672264,842.16,840.91,0.83391116]
[1766115192403,0.20672264,842.16,840.86,0.83391116]
[1766115192703,0.20672264,842.16,840.82,0.83391116]
[1766115192903,0.86485148,842.07,840.69,0.83391116]
[1766115193104,0.86485148,841.92,840.55,0.83391116]
[1766115193500,0.86485148,841.91,840.54,0.83391116]
[1766115193698,0.20672264,842.16,840.48,0.83391116]
[1766115193699,0.86485148,841.86,840.48,0.83391116]
[1766115193901,0.86485148,841.84,840.44,0.83391116]
[1766115194099,0.86485148,841.84,839.95,12.80107276]
[1766115194100,0.86485148,841.76,840.38,0.83391116]
[1766115194604,0.86485148,841.77,840.39,0.83391116]
[1766115194806,0.86485148,841.79,840.41,0.83391116]
[1766115195104,0.86485148,841.79,840.4,0.83391116]
[1766115195304,1.18038957,841.94,840.4,0.83391116]
[1766115195305,0.86485148,841.8,840.4,0.83391116]
[1766115195606,0.86485148,841.83,840.43,0.83391116]
[1766115195805,0.86485148,841.89,840.49,0.83391116]
[1766115196001,0.86485148,841.9,840.5,0.83391116]
[1766115196401,0.86485148,841.97,840.57,0.83391116]
[1766115197101,0.86485148,841.98,840.59,0.83391116]
[1766115197406,0.86485148,841.97,840.59,0.83391116]
[1766115198006,0.86485148,842.05,840.67,0.83391116]
[1766115198803,0.86485148,842.0,840.62,0.83391116]
[1766115201407,0.86485148,841.93,840.55,0.83391116]
[1766115201708,0.86485148,841.92,840.54,0.83391116]
[1766115202202,0.86485148,841.92,840.55,0.83391116]
[1766115202406,0.86485148,841.92,840.54,0.83391116]
[1766115202607,0.86485148,842.0,840.62,0.83391116]
[1766115202803,0.86485148,842.03,840.65,0.83391116]
[1766115203303,0.86485148,842.13,840.75,0.83391116]
[1766115203507,0.20672264,842.16,840.8,0.83391116]
[1766115204306,0.20672264,842.16,840.79,0.83391116]
[1766115204503,0.86485148,841.92,840.54,0.83391116]
[1766115204708,0.86485148,841.82,840.44,0.83391116]
[1766115205904,0.86485148,841.81,840.43,0.83391116]
[1766115206105,0.86485148,841.81,840.42,0.83391116]
[1766115207811,0.86485148,841.73,840.34,0.83391116]
[1766115208011,0.86485148,841.67,840.28,0.83391116]
[1766115208210,0.86485148,841.61,840.19,0.83391116]
[1766115209209,0.86485148,841.62,840.18,0.83391116]
[1766115209512,0.86485148,841.7,840.25,0.83391116]
[1766115209808,0.86485148,841.64,840.19,0.83391116]
[1766115210012,0.86485148,841.63,840.19,0.83391116]
[1766115210212,0.86485148,841.56,840.08,0.83391116]
[1766115210609,0.86485148,841.55,840.07,0.83391116]
[1766115211412,0.86485148,841.56,840.05,0.83391116]
[1766115211609,0.86485148,841.57,840.06,0.83391116]
[1766115212311,0.86485148,841.52,839.98,0.83391116]
[1766115212510,0.86485148,841.51,839.97,0.83391116]
[1766115212714,0.86485148,841.5,839.96,0.83391116]
[1766115213009,0.86485148,841.41,839.95,12.80107276]
[1766115213413,0.86485148,841.35,839.95,12.80107276]
[1766115214211,0.86485148,841.37,839.95,12.80107276]
[1766115214412,0.86485148,841.38,839.95,12.80107276]
[1766115214617,0.86485148,841.39,839.95,12.80107276]
[1766115215116,0.86485148,841.41,839.95,12.80107276]
[1766115215813,0.86485148,841.38,839.95,12.80107276]
[1766115216217,0.86485148,841.4,839.95,12.80107276]
[1766115216612,0.86485148,841.47,839.95,12.80107276]
[1766115217016,0.86485148,841.48,839.95,12.80107276]
[1766115217217,0.86485148,841.5,839.95,12.80107276]
[1766115217618,0.86485148,841.53,839.95,12.80107276]
[1766115217919,0.86485148,841.54,839.95,12.80107276]
[1766115218114,0.86485148,841.55,839.95,12.80107276]
[1766115219118,0.86485148,841.56,839.95,12.80107276]
[1766115220117,0.86485148,841.57,839.95,12.80107276]
[1766115220718,0.86485148,841.65,839.95,12.80107276]
[1766115221114,0.86485148,841.66,839.95,12.80107276]
[1766115221815,0.86485148,841.63,839.95,12.80107276]
[1766115222218,0.86485148,841.59,839.95,12.80107276]
[1766115223122,0.86485148,841.52,839.95,12.80107276]
[1766115224019,0.86485148,841.53,839.95,12.80107276]
[1766115224221,0.86485148,841.56,839.95,12.80107276]
[1766115224520,0.20672264,842.16,839.95,12.80107276]
[1766115224521,0.86485148,841.61,839.95,12.80107276]
[1766115224720,1.7893842,841.92,839.95,12.80107276]
[1766115224721,0.86485148,841.62,839.95,12.80107276]
[1766115225120,0.20672264,842.16,839.95,12.80107276]
[1766115225121,0.86485148,841.8,839.95,12.80107276]
[1766115226123,0.86485148,841.81,839.95,12.80107276]
[1766115228326,0.86485148,841.82,839.95,12.80107276]
[1766115228526,0.86485148,841.77,839.95,12.80107276]
[1766115228825,0.86485148,841.75,839.95,12.80107276]
[1766115229026,0.86485148,841.73,839.95,12.80107276]
[1766115229322,0.86485148,841.74,839.95,12.80107276]
[1766115229526,0.86485148,841.66,839.95,12.80107276]
[1766115230025,0.86485148,841.65,839.95,12.80107276]
[1766115230528,0.86485148,841.54,839.95,12.80107276]
[1766115230728,0.86485148,841.41,839.95,12.80107276]
[1766115231026,0.86485148,841.38,839.95,12.80107276]
[1766115231227,0.86485148,841.21,839.95,12.80107276]
[1766115231627,0.00944589,842.05,839.95,12.80107276]
[1766115231628,0.86485148,841.34,839.95,12.80107276]
[1766115232026,0.86485148,841.45,839.95,12.80107276]
[1766115232223,0.86485148,841.46,839.95,12.80107276]
[1766115233224,0.86485148,841.47,839.95,12.80107276]
[1766115233525,0.86485148,841.46,839.95,12.80107276]
[1766115233728,0.86485148,841.45,839.95,12.80107276]
[1766115233928,0.01161492,842.3,839.95,12.80107276]
[1766115233929,0.86485148,841.39,839.95,12.80107276]
[1766115234328,0.86485148,841.36,839.95,12.80107276]
[1766115234526,0.86485148,841.31,839.95,12.80107276]
[1766115234829,0.86485148,841.31,839.5,0.01117696]
[1766115235025,0.86485148,841.31,839.24,0.83391116]
[1766115235229,0.86485148,841.32,839.23,0.83391116]